[Event "Titled Tuesday Blitz November 07 Early 2023"]
[White "Ovetchkin, Roman"]
[Black "Goh, Zi Han"]
[WhiteFideId "4119991"]
[BlackFideId "5819156"]
[WhiteElo "2680"]
[BlackElo "2336"]
[Result "1-0"]
[Round "4"]
[TimeControl "180+1"]
[Date "2023.11.07"]
[WhiteClock "0:00:18"]
[BlackClock "0:00:01"]
[Board "95"]

1. d4 {[%clk 0:02:59]}  d5 {[%clk 0:02:58]} 2. c4 {[%clk 0:02:59]}  c6 {[%clk 0:02:58]} 3. Nf3 {[%clk 0:02:59]}  Nf6 {[%clk 0:02:58]} 4. Qc2 {[%clk 0:02:59]}  dxc4 {[%clk 0:02:52]} 5. e4 {[%clk 0:02:58]}  b5 {[%clk 0:02:48]} 6. b3 {[%clk 0:02:59]}  cxb3 {[%clk 0:02:45]} 7. axb3 {[%clk 0:02:59]}  Bb7 {[%clk 0:02:36]} 8. Bd3 {[%clk 0:02:47]}  e6 {[%clk 0:02:36]} 9. Bd2 {[%clk 0:02:47]}  Be7 {[%clk 0:02:14]} 10. O-O {[%clk 0:02:45]}  Qc8 {[%clk 0:02:07]} 11. Rc1 {[%clk 0:02:42]}  Na6 {[%clk 0:02:04]} 12. Ne5 {[%clk 0:02:29]}  Nb4 {[%clk 0:01:35]} 13. Bxb4 {[%clk 0:02:28]}  Bxb4 {[%clk 0:01:36]} 14. Nxc6 {[%clk 0:02:28]}  Bxc6 {[%clk 0:01:36]} 15. Qxc6+ {[%clk 0:02:28]}  Qxc6 {[%clk 0:01:36]} 16. Rxc6 {[%clk 0:02:29]}  O-O {[%clk 0:01:27]} 17. e5 {[%clk 0:02:20]}  Nd5 {[%clk 0:01:26]} 18. Bxb5 {[%clk 0:02:20]}  Rfc8 {[%clk 0:01:22]} 19. Rxa7 {[%clk 0:01:58]}  g6 {[%clk 0:01:06]} 20. Rxa8 {[%clk 0:01:21]}  Rxa8 {[%clk 0:01:06]} 21. Ba4 {[%clk 0:01:22]}  Kg7 {[%clk 0:01:02]} 22. g3 {[%clk 0:01:22]}  h5 {[%clk 0:00:52]} 23. h4 {[%clk 0:01:21]}  Rd8 {[%clk 0:00:26]} 24. Kf1 {[%clk 0:01:17]}  Kh6 {[%clk 0:00:20]} 25. Ke2 {[%clk 0:01:15]}  g5 {[%clk 0:00:20]} 26. hxg5+ {[%clk 0:01:14]}  Kxg5 {[%clk 0:00:21]} 27. Nd2 {[%clk 0:01:10]}  Nc3+ {[%clk 0:00:15]} 28. Kd3 {[%clk 0:01:08]}  Nxa4 {[%clk 0:00:13]} 29. Ne4+ {[%clk 0:01:03]}  Kg4 {[%clk 0:00:12]} 30. bxa4 {[%clk 0:01:03]}  Kf3 {[%clk 0:00:11]} 31. Rc7 {[%clk 0:01:00]}  Rf8 {[%clk 0:00:06]} 32. Rb7 {[%clk 0:00:50]}  Be1 {[%clk 0:00:03]} 33. Ng5+ {[%clk 0:00:34]}  Kxf2 {[%clk 0:00:03]} 34. Nxf7 {[%clk 0:00:35]}  Kxg3 {[%clk 0:00:03]} 35. Ng5 {[%clk 0:00:34]}  h4 {[%clk 0:00:03]} 36. Rg7 {[%clk 0:00:32]}  Kf2 {[%clk 0:00:02]} 37. Rh7 {[%clk 0:00:30]}  Kg3 {[%clk 0:00:02]} 38. Nxe6 {[%clk 0:00:28]}  Re8 {[%clk 0:00:01]} 39. Ng5 {[%clk 0:00:26]}  Ra8 {[%clk 0:00:02]} 40. Ne4+ {[%clk 0:00:25]}  Kf3 {[%clk 0:00:02]} 41. Nc5 {[%clk 0:00:24]}  Bf2 {[%clk 0:00:01]} 42. e6 {[%clk 0:00:23]}  Kg2 {[%clk 0:00:02]} 43. Rg7+ {[%clk 0:00:21]}  Kh2 {[%clk 0:00:01]} 44. Ne4 {[%clk 0:00:20]}  Bg3 {[%clk 0:00:02]} 45. e7 {[%clk 0:00:19]}  h3 {[%clk 0:00:01]} 46. Nxg3 {[%clk 0:00:19]}  Ra5 {[%clk 0:00:01]} 47. e8=Q {[%clk 0:00:18]}  Rxa4 {[%clk 0:00:02]} 48. Qe2+ {[%clk 0:00:17]}  Kg1 {[%clk 0:00:02]} 49. Nf1+ {[%clk 0:00:17]}  Kh1 {[%clk 0:00:01]} 50. Qh2# {[%clk 0:00:18]} 1-0


[Site "https://www.chess.com"]

[Event "Titled Tuesday Blitz November 07 Early 2023"]
[White "Yen, William"]
[Black "MIss_MIaMI"]
[WhiteFideId "30932025"]
[WhiteElo "2679"]
[BlackElo "2334"]
[Result "1-0"]
[Round "4"]
[TimeControl "180+1"]
[Date "2023.11.07"]
[WhiteClock "0:00:25"]
[BlackClock "0:00:00"]
[Board "96"]

1. e4 {[%clk 0:02:52]}  c5 {[%clk 0:03:00]} 2. Nf3 {[%clk 0:02:51]}  e6 {[%clk 0:03:00]} 3. b3 {[%clk 0:02:42]}  Nc6 {[%clk 0:02:58]} 4. Bb2 {[%clk 0:02:41]}  d6 {[%clk 0:02:58]} 5. Bb5 {[%clk 0:02:40]}  Qb6 {[%clk 0:02:53]} 6. Qe2 {[%clk 0:02:36]}  Bd7 {[%clk 0:02:46]} 7. Nc3 {[%clk 0:02:35]}  a6 {[%clk 0:02:46]} 8. Bxc6 {[%clk 0:02:32]}  Qxc6 {[%clk 0:02:39]} 9. O-O-O {[%clk 0:02:33]}  Nf6 {[%clk 0:02:38]} 10. e5 {[%clk 0:02:28]}  dxe5 {[%clk 0:02:34]} 11. Nxe5 {[%clk 0:02:29]}  Qc7 {[%clk 0:02:34]} 12. g4 {[%clk 0:02:21]}  b5 {[%clk 0:02:04]} 13. g5 {[%clk 0:02:19]}  b4 {[%clk 0:01:27]} 14. gxf6 {[%clk 0:02:18]}  bxc3 {[%clk 0:01:27]} 15. dxc3 {[%clk 0:02:19]}  Bc6 {[%clk 0:01:19]} 16. Nxc6 {[%clk 0:02:14]}  Qxc6 {[%clk 0:01:20]} 17. c4 {[%clk 0:02:04]}  g6 {[%clk 0:01:06]} 18. h4 {[%clk 0:02:02]}  h5 {[%clk 0:01:06]} 19. Kb1 {[%clk 0:01:57]}  a5 {[%clk 0:01:06]} 20. a4 {[%clk 0:01:52]}  Bh6 {[%clk 0:01:03]} 21. Rhg1 {[%clk 0:01:45]}  Rd8 {[%clk 0:00:51]} 22. Qe5 {[%clk 0:01:22]}  Rxd1+ {[%clk 0:00:29]} 23. Rxd1 {[%clk 0:01:23]}  O-O {[%clk 0:00:27]} 24. Rd6 {[%clk 0:00:38]}  Qh1+ {[%clk 0:00:26]} 25. Ka2 {[%clk 0:00:38]}  Qxh4 {[%clk 0:00:26]} 26. Qxc5 {[%clk 0:00:36]}  Qg5 {[%clk 0:00:16]} 27. Qxg5 {[%clk 0:00:33]}  Bxg5 {[%clk 0:00:17]} 28. Be5 {[%clk 0:00:33]}  h4 {[%clk 0:00:09]} 29. c5 {[%clk 0:00:32]}  h3 {[%clk 0:00:08]} 30. c6 {[%clk 0:00:31]}  h2 {[%clk 0:00:03]} 31. Bxh2 {[%clk 0:00:31]}  Bxf6 {[%clk 0:00:04]} 32. c7 {[%clk 0:00:29]}  Rc8 {[%clk 0:00:04]} 33. Rb6 {[%clk 0:00:26]}  Kf8 {[%clk 0:00:05]} 34. Rb8 {[%clk 0:00:25]}  Kg7 {[%clk 0:00:00]} 35. Rxc8 {[%clk 0:00:25]} 1-0


[Site "https://www.chess.com"]

[Event "Titled Tuesday Blitz November 07 Early 2023"]
[White "Bogaudinov, Rushan"]
[Black "Perdomo, Leandro"]
[WhiteFideId "4129288"]
[BlackFideId "109746"]
[WhiteElo "2320"]
[BlackElo "2674"]
[Result "0-1"]
[Round "4"]
[TimeControl "180+1"]
[Date "2023.11.07"]
[WhiteClock "0:00:16"]
[BlackClock "0:00:17"]
[Board "98"]

1. e4 {[%clk 0:02:59]}  e5 {[%clk 0:03:00]} 2. Nf3 {[%clk 0:02:59]}  Nc6 {[%clk 0:03:01]} 3. Bb5 {[%clk 0:02:59]}  a6 {[%clk 0:03:01]} 4. Ba4 {[%clk 0:02:59]}  Nf6 {[%clk 0:03:01]} 5. O-O {[%clk 0:02:58]}  Be7 {[%clk 0:03:02]} 6. Re1 {[%clk 0:02:56]}  b5 {[%clk 0:03:02]} 7. Bb3 {[%clk 0:02:56]}  d6 {[%clk 0:03:02]} 8. h3 {[%clk 0:02:56]}  Na5 {[%clk 0:03:02]} 9. c3 {[%clk 0:02:50]}  Nxb3 {[%clk 0:03:02]} 10. axb3 {[%clk 0:02:51]}  O-O {[%clk 0:03:02]} 11. d4 {[%clk 0:02:41]}  Bb7 {[%clk 0:02:52]} 12. Nbd2 {[%clk 0:02:35]}  Re8 {[%clk 0:02:50]} 13. Qc2 {[%clk 0:02:29]}  exd4 {[%clk 0:02:46]} 14. Nxd4 {[%clk 0:02:26]}  Bf8 {[%clk 0:02:44]} 15. b4 {[%clk 0:02:06]}  c5 {[%clk 0:02:42]} 16. Nf5 {[%clk 0:02:01]}  Qd7 {[%clk 0:02:32]} 17. Ng3 {[%clk 0:01:56]}  cxb4 {[%clk 0:02:28]} 18. cxb4 {[%clk 0:01:56]}  d5 {[%clk 0:02:29]} 19. e5 {[%clk 0:01:54]}  Bxb4 {[%clk 0:02:27]} 20. Re3 {[%clk 0:01:46]}  Ne4 {[%clk 0:02:12]} 21. Ndxe4 {[%clk 0:01:40]}  dxe4 {[%clk 0:02:13]} 22. Nxe4 {[%clk 0:01:33]}  Rxe5 {[%clk 0:02:09]} 23. Nc3 {[%clk 0:01:16]}  Rg5 {[%clk 0:01:48]} 24. Rg3 {[%clk 0:01:12]}  Rxg3 {[%clk 0:01:47]} 25. fxg3 {[%clk 0:01:13]}  Bd6 {[%clk 0:01:31]} 26. Bf4 {[%clk 0:00:59]}  Bxf4 {[%clk 0:01:02]} 27. gxf4 {[%clk 0:01:00]}  Qc6 {[%clk 0:00:57]} 28. Qf2 {[%clk 0:00:58]}  Rd8 {[%clk 0:00:50]} 29. Rd1 {[%clk 0:00:52]}  Rxd1+ {[%clk 0:00:46]} 30. Nxd1 {[%clk 0:00:53]}  h6 {[%clk 0:00:42]} 31. Kh2 {[%clk 0:00:50]}  Qc1 {[%clk 0:00:39]} 32. Qd4 {[%clk 0:00:38]}  Qc2 {[%clk 0:00:38]} 33. Ne3 {[%clk 0:00:37]}  Qf2 {[%clk 0:00:31]} 34. Qd8+ {[%clk 0:00:34]}  Kh7 {[%clk 0:00:31]} 35. Qd3+ {[%clk 0:00:33]}  g6 {[%clk 0:00:31]} 36. f5 {[%clk 0:00:31]}  Qf4+ {[%clk 0:00:28]} 37. Kg1 {[%clk 0:00:30]}  Be4 {[%clk 0:00:24]} 38. fxg6+ {[%clk 0:00:29]}  Bxg6 {[%clk 0:00:24]} 39. Qe2 {[%clk 0:00:24]}  Qe4 {[%clk 0:00:24]} 40. Qf2 {[%clk 0:00:23]}  h5 {[%clk 0:00:23]} 41. g4 {[%clk 0:00:20]}  Qb1+ {[%clk 0:00:20]} 42. Kh2 {[%clk 0:00:20]}  Qe4 {[%clk 0:00:17]} 43. gxh5 {[%clk 0:00:19]}  Qe5+ {[%clk 0:00:16]} 44. Qg3 {[%clk 0:00:18]}  Qxg3+ {[%clk 0:00:16]} 45. Kxg3 {[%clk 0:00:19]}  Bxh5 {[%clk 0:00:17]} 46. b4 {[%clk 0:00:18]}  Be2 {[%clk 0:00:15]} 47. Nd5 {[%clk 0:00:18]}  Bc4 {[%clk 0:00:14]} 48. Nc7 {[%clk 0:00:18]}  Kg6 {[%clk 0:00:14]} 49. Nxa6 {[%clk 0:00:18]}  Kg5 {[%clk 0:00:15]} 50. Nc5 {[%clk 0:00:17]}  f5 {[%clk 0:00:15]} 51. Ne6+ {[%clk 0:00:18]}  Bxe6 {[%clk 0:00:14]} 52. h4+ {[%clk 0:00:17]}  Kf6 {[%clk 0:00:14]} 53. Kf4 {[%clk 0:00:18]}  Bf7 {[%clk 0:00:14]} 54. Ke3 {[%clk 0:00:16]}  Ke5 {[%clk 0:00:15]} 55. Kf3 {[%clk 0:00:16]}  f4 {[%clk 0:00:16]} 56. Kg4 {[%clk 0:00:17]}  Be6+ {[%clk 0:00:16]} 57. Kg5 {[%clk 0:00:18]}  f3 {[%clk 0:00:15]} 58. h5 {[%clk 0:00:16]}  f2 {[%clk 0:00:15]} 59. h6 {[%clk 0:00:15]}  f1=Q {[%clk 0:00:16]} 60. Kg6 {[%clk 0:00:16]}  Qf7+ {[%clk 0:00:16]} 61. Kg5 {[%clk 0:00:16]}  Qf5+ {[%clk 0:00:16]} 62. Kh4 {[%clk 0:00:16]}  Qg4# {[%clk 0:00:17]} 0-1


[Site "https://www.chess.com"]

[Event "Titled Tuesday Blitz November 07 Early 2023"]
[White "Biernacki, Mark"]
[Black "Arifarsky"]
[WhiteFideId "2082322"]
[WhiteElo "2318"]
[BlackElo "2673"]
[Result "0-1"]
[Round "4"]
[TimeControl "180+1"]
[Date "2023.11.07"]
[WhiteClock "0:00:08"]
[BlackClock "0:00:09"]
[Board "99"]

1. e4 {[%clk 0:02:59]}  e5 {[%clk 0:02:58]} 2. Nf3 {[%clk 0:03:00]}  Nc6 {[%clk 0:02:58]} 3. Bc4 {[%clk 0:03:00]}  Bc5 {[%clk 0:02:58]} 4. c3 {[%clk 0:03:00]}  Nf6 {[%clk 0:02:57]} 5. d4 {[%clk 0:02:58]}  exd4 {[%clk 0:02:56]} 6. e5 {[%clk 0:02:58]}  d5 {[%clk 0:02:56]} 7. Be2 {[%clk 0:02:57]}  Ne4 {[%clk 0:02:51]} 8. cxd4 {[%clk 0:02:57]}  Bb4+ {[%clk 0:02:44]} 9. Bd2 {[%clk 0:02:54]}  Be7 {[%clk 0:02:32]} 10. O-O {[%clk 0:02:53]}  O-O {[%clk 0:02:31]} 11. Nc3 {[%clk 0:02:52]}  Nxc3 {[%clk 0:02:18]} 12. bxc3 {[%clk 0:02:50]}  Be6 {[%clk 0:02:03]} 13. Rb1 {[%clk 0:02:44]}  Rb8 {[%clk 0:02:02]} 14. Qa4 {[%clk 0:02:40]}  f6 {[%clk 0:01:50]} 15. exf6 {[%clk 0:02:37]}  Bxf6 {[%clk 0:01:50]} 16. Bd3 {[%clk 0:02:26]}  Qd7 {[%clk 0:01:42]} 17. Be3 {[%clk 0:02:20]}  Bf5 {[%clk 0:01:33]} 18. Bxf5 {[%clk 0:02:11]}  Qxf5 {[%clk 0:01:33]} 19. Rb5 {[%clk 0:01:59]}  a6 {[%clk 0:01:30]} 20. Rc5 {[%clk 0:01:59]}  Be7 {[%clk 0:01:29]} 21. Rxc6 {[%clk 0:01:48]}  bxc6 {[%clk 0:01:29]} 22. Ne5 {[%clk 0:01:45]}  Rb1 {[%clk 0:01:17]} 23. Qxc6 {[%clk 0:01:13]}  Rxf1+ {[%clk 0:01:15]} 24. Kxf1 {[%clk 0:01:14]}  Qb1+ {[%clk 0:01:15]} 25. Ke2 {[%clk 0:01:14]}  Qxa2+ {[%clk 0:01:10]} 26. Ke1 {[%clk 0:01:14]}  Bd6 {[%clk 0:01:04]} 27. f4 {[%clk 0:01:00]}  Rb8 {[%clk 0:00:59]} 28. Bd2 {[%clk 0:00:54]}  Qb1+ {[%clk 0:00:54]} 29. Kf2 {[%clk 0:00:52]}  Qa2 {[%clk 0:00:51]} 30. Ke3 {[%clk 0:00:49]}  Rd8 {[%clk 0:00:34]} 31. h3 {[%clk 0:00:36]}  h6 {[%clk 0:00:30]} 32. g4 {[%clk 0:00:35]}  Bxe5 {[%clk 0:00:25]} 33. dxe5 {[%clk 0:00:35]}  Qc4 {[%clk 0:00:23]} 34. Qe6+ {[%clk 0:00:25]}  Kh8 {[%clk 0:00:23]} 35. Kf2 {[%clk 0:00:26]}  Qd3 {[%clk 0:00:14]} 36. Be3 {[%clk 0:00:24]}  Qc2+ {[%clk 0:00:14]} 37. Kf3 {[%clk 0:00:23]}  Qxc3 {[%clk 0:00:13]} 38. Qe7 {[%clk 0:00:21]}  Rg8 {[%clk 0:00:11]} 39. Kg2 {[%clk 0:00:13]}  Qxe3 {[%clk 0:00:11]} 40. f5 {[%clk 0:00:13]}  Rb8 {[%clk 0:00:08]} 41. f6 {[%clk 0:00:08]}  Rb2+ {[%clk 0:00:08]} 42. Kh1 {[%clk 0:00:08]}  Qc1# {[%clk 0:00:09]} 0-1


[Site "https://www.chess.com"]

[Event "Titled Tuesday Blitz November 07 Early 2023"]
[White "Balla, Tamas-Kristof"]
[Black "Mgeladze, Tamaz"]
[WhiteFideId "1208497"]
[BlackFideId "13601202"]
[WhiteElo "2317"]
[BlackElo "2671"]
[Result "0-1"]
[Round "4"]
[TimeControl "180+1"]
[Date "2023.11.07"]
[WhiteClock "0:00:00"]
[BlackClock "0:00:07"]
[Board "100"]

1. e4 {[%clk 0:02:57]}  c5 {[%clk 0:02:59]} 2. c3 {[%clk 0:02:56]}  Nf6 {[%clk 0:02:59]} 3. e5 {[%clk 0:02:56]}  Nd5 {[%clk 0:02:59]} 4. d4 {[%clk 0:02:57]}  cxd4 {[%clk 0:03:00]} 5. Nf3 {[%clk 0:02:57]}  Nc6 {[%clk 0:03:00]} 6. cxd4 {[%clk 0:02:58]}  d6 {[%clk 0:03:01]} 7. Bc4 {[%clk 0:02:58]}  dxe5 {[%clk 0:03:00]} 8. dxe5 {[%clk 0:02:56]}  Be6 {[%clk 0:03:01]} 9. O-O {[%clk 0:02:55]}  g6 {[%clk 0:03:01]} 10. Ng5 {[%clk 0:02:55]}  Bg7 {[%clk 0:03:01]} 11. Nxe6 {[%clk 0:02:55]}  fxe6 {[%clk 0:03:02]} 12. f4 {[%clk 0:02:55]}  Qb6+ {[%clk 0:03:02]} 13. Kh1 {[%clk 0:02:54]}  Rd8 {[%clk 0:03:03]} 14. Qb3 {[%clk 0:02:32]}  O-O {[%clk 0:02:55]} 15. Nc3 {[%clk 0:02:27]}  Nd4 {[%clk 0:02:03]} 16. Qa4 {[%clk 0:01:58]}  Nf5 {[%clk 0:01:50]} 17. Ne4 {[%clk 0:01:20]}  Qd4 {[%clk 0:01:42]} 18. Ng5 {[%clk 0:01:15]}  Rc8 {[%clk 0:01:24]} 19. Bb3 {[%clk 0:01:11]}  Qxa4 {[%clk 0:01:15]} 20. Bxa4 {[%clk 0:01:12]}  Nfe3 {[%clk 0:01:08]} 21. Bxe3 {[%clk 0:01:08]}  Nxe3 {[%clk 0:01:09]} 22. Rf3 {[%clk 0:01:08]}  Nc2 {[%clk 0:00:56]} 23. Bxc2 {[%clk 0:00:50]}  Rxc2 {[%clk 0:00:57]} 24. Nxe6 {[%clk 0:00:51]}  Rfc8 {[%clk 0:00:58]} 25. h3 {[%clk 0:00:48]}  Rxb2 {[%clk 0:00:56]} 26. Rd1 {[%clk 0:00:43]}  Kf7 {[%clk 0:00:42]} 27. Ng5+ {[%clk 0:00:42]}  Ke8 {[%clk 0:00:43]} 28. Rfd3 {[%clk 0:00:42]}  Rxa2 {[%clk 0:00:33]} 29. Ne6 {[%clk 0:00:42]}  Kf7 {[%clk 0:00:31]} 30. Ng5+ {[%clk 0:00:40]}  Ke8 {[%clk 0:00:29]} 31. Ne6 {[%clk 0:00:30]}  Bf8 {[%clk 0:00:19]} 32. Ng5 {[%clk 0:00:27]}  h6 {[%clk 0:00:18]} 33. Ne4 {[%clk 0:00:27]}  Kf7 {[%clk 0:00:14]} 34. Rd7 {[%clk 0:00:26]}  Rcc2 {[%clk 0:00:11]} 35. Rg1 {[%clk 0:00:18]}  b5 {[%clk 0:00:11]} 36. Rb7 {[%clk 0:00:18]}  a6 {[%clk 0:00:11]} 37. Nd6+ {[%clk 0:00:16]}  Ke6 {[%clk 0:00:11]} 38. Ne4 {[%clk 0:00:14]}  Kf5 {[%clk 0:00:11]} 39. Ng3+ {[%clk 0:00:13]}  Kxf4 {[%clk 0:00:12]} 40. Nf1 {[%clk 0:00:12]}  Kxe5 {[%clk 0:00:10]} 41. Rd7 {[%clk 0:00:11]}  e6 {[%clk 0:00:10]} 42. Nh2 {[%clk 0:00:11]}  Bc5 {[%clk 0:00:08]} 43. Ng4+ {[%clk 0:00:11]}  Kf4 {[%clk 0:00:08]} 44. Rf1+ {[%clk 0:00:11]}  Kg5 {[%clk 0:00:08]} 45. g3 {[%clk 0:00:07]}  h5 {[%clk 0:00:07]} 46. h4+ {[%clk 0:00:03]}  Kxg4 {[%clk 0:00:07]} 47. Rf4+ {[%clk 0:00:00]}  Kh3 {[%clk 0:00:07]} 0-1


[Site "https://www.chess.com"]

[Event "Titled Tuesday Blitz November 07 Early 2023"]
[White "Jakubowski, Krzysztof"]
[Black "Kohler, Aran"]
[WhiteFideId "1112848"]
[BlackFideId "1002856"]
[WhiteElo "2668"]
[BlackElo "2299"]
[Result "1-0"]
[Round "4"]
[TimeControl "180+1"]
[Date "2023.11.07"]
[WhiteClock "0:00:58"]
[BlackClock "0:00:23"]
[Board "102"]

1. e4 {[%clk 0:03:00]}  c6 {[%clk 0:03:00]} 2. Nf3 {[%clk 0:02:59]}  d5 {[%clk 0:03:00]} 3. d3 {[%clk 0:02:59]}  dxe4 {[%clk 0:02:58]} 4. dxe4 {[%clk 0:02:59]}  Qxd1+ {[%clk 0:02:59]} 5. Kxd1 {[%clk 0:03:00]}  Bg4 {[%clk 0:02:57]} 6. Be2 {[%clk 0:02:59]}  Nd7 {[%clk 0:02:55]} 7. Ne1 {[%clk 0:02:59]}  Bxe2+ {[%clk 0:02:54]} 8. Kxe2 {[%clk 0:03:00]}  e5 {[%clk 0:02:54]} 9. Nd3 {[%clk 0:02:57]}  Ngf6 {[%clk 0:02:51]} 10. f3 {[%clk 0:02:57]}  Bd6 {[%clk 0:02:50]} 11. Be3 {[%clk 0:02:56]}  b6 {[%clk 0:02:50]} 12. Nd2 {[%clk 0:02:55]}  O-O {[%clk 0:02:43]} 13. a4 {[%clk 0:02:53]}  a5 {[%clk 0:02:39]} 14. Rhd1 {[%clk 0:02:49]}  Bc7 {[%clk 0:02:36]} 15. Ra3 {[%clk 0:02:47]}  Rab8 {[%clk 0:02:28]} 16. Rc3 {[%clk 0:02:45]}  c5 {[%clk 0:02:27]} 17. Nc4 {[%clk 0:02:38]}  Rfe8 {[%clk 0:02:21]} 18. Na3 {[%clk 0:02:33]}  Rbd8 {[%clk 0:02:21]} 19. b3 {[%clk 0:02:32]}  Nb8 {[%clk 0:02:09]} 20. Nb5 {[%clk 0:02:28]}  Rd7 {[%clk 0:02:09]} 21. Nb2 {[%clk 0:02:26]}  Bd8 {[%clk 0:01:46]} 22. Rcd3 {[%clk 0:02:19]}  Rxd3 {[%clk 0:01:43]} 23. Rxd3 {[%clk 0:02:20]}  Nc6 {[%clk 0:01:43]} 24. c3 {[%clk 0:02:20]}  Be7 {[%clk 0:01:41]} 25. Nc4 {[%clk 0:02:19]}  Bd8 {[%clk 0:01:32]} 26. g4 {[%clk 0:01:41]}  h6 {[%clk 0:01:31]} 27. Ncd6 {[%clk 0:01:30]}  Re7 {[%clk 0:01:29]} 28. h4 {[%clk 0:01:15]}  Bc7 {[%clk 0:01:16]} 29. Nf5 {[%clk 0:01:09]}  Bd8 {[%clk 0:00:53]} 30. Rxd8+ {[%clk 0:01:07]}  Nxd8 {[%clk 0:00:52]} 31. Nxe7+ {[%clk 0:01:07]}  Kf8 {[%clk 0:00:53]} 32. Nc8 {[%clk 0:01:05]}  Nd7 {[%clk 0:00:50]} 33. Kd3 {[%clk 0:01:00]}  Ke8 {[%clk 0:00:39]} 34. Nc7+ {[%clk 0:00:57]}  Kf8 {[%clk 0:00:23]} 35. Kc4 {[%clk 0:00:58]} 1-0


[Site "https://www.chess.com"]

[Event "Titled Tuesday Blitz November 07 Early 2023"]
[White "Kleiman, Jake"]
[Black "Rodriguez Dominguez, Melissa"]
[WhiteFideId "2020041"]
[BlackFideId "3517560"]
[WhiteElo "2661"]
[BlackElo "2256"]
[Result "1-0"]
[Round "4"]
[TimeControl "180+1"]
[Date "2023.11.07"]
[WhiteClock "0:00:08"]
[BlackClock "0:00:00"]
[Board "104"]

1. e4 {[%clk 0:03:00]}  c5 {[%clk 0:02:55]} 2. c3 {[%clk 0:03:00]}  Nf6 {[%clk 0:02:52]} 3. e5 {[%clk 0:02:57]}  Nd5 {[%clk 0:02:52]} 4. Bc4 {[%clk 0:02:58]}  Nb6 {[%clk 0:02:51]} 5. Bb3 {[%clk 0:02:58]}  c4 {[%clk 0:02:52]} 6. Bc2 {[%clk 0:02:57]}  Nc6 {[%clk 0:02:52]} 7. Nf3 {[%clk 0:02:58]}  d5 {[%clk 0:02:52]} 8. exd6 {[%clk 0:02:59]}  Qxd6 {[%clk 0:02:53]} 9. Qe2 {[%clk 0:03:00]}  Bg4 {[%clk 0:02:50]} 10. Na3 {[%clk 0:02:59]}  Ne5 {[%clk 0:02:41]} 11. Be4 {[%clk 0:02:58]}  Nd3+ {[%clk 0:02:36]} 12. Bxd3 {[%clk 0:02:42]}  cxd3 {[%clk 0:02:37]} 13. Qe4 {[%clk 0:02:42]}  Bxf3 {[%clk 0:02:03]} 14. Qxf3 {[%clk 0:02:43]}  Qe5+ {[%clk 0:02:00]} 15. Qe3 {[%clk 0:02:28]}  Qxe3+ {[%clk 0:02:00]} 16. dxe3 {[%clk 0:02:20]}  O-O-O {[%clk 0:01:59]} 17. e4 {[%clk 0:02:07]}  e5 {[%clk 0:01:58]} 18. b3 {[%clk 0:01:59]}  d2+ {[%clk 0:01:46]} 19. Bxd2 {[%clk 0:01:59]}  Bxa3 {[%clk 0:01:46]} 20. Ke2 {[%clk 0:01:44]}  Rd7 {[%clk 0:01:00]} 21. Be3 {[%clk 0:01:33]}  Bb2 {[%clk 0:00:48]} 22. Rab1 {[%clk 0:01:32]}  Bxc3 {[%clk 0:00:46]} 23. a4 {[%clk 0:01:14]}  Bd4 {[%clk 0:00:38]} 24. Bc1 {[%clk 0:00:54]}  Rc7 {[%clk 0:00:33]} 25. a5 {[%clk 0:00:52]}  Nd7 {[%clk 0:00:33]} 26. Bd2 {[%clk 0:00:47]}  Nc5 {[%clk 0:00:32]} 27. f3 {[%clk 0:00:46]}  Kb8 {[%clk 0:00:31]} 28. Rhd1 {[%clk 0:00:39]}  Rhc8 {[%clk 0:00:31]} 29. Be1 {[%clk 0:00:35]}  Ne6 {[%clk 0:00:27]} 30. Kf1 {[%clk 0:00:36]}  f6 {[%clk 0:00:25]} 31. g3 {[%clk 0:00:36]}  Rc2 {[%clk 0:00:22]} 32. Bd2 {[%clk 0:00:36]}  Bc3 {[%clk 0:00:20]} 33. Be3 {[%clk 0:00:32]}  Nd4 {[%clk 0:00:20]} 34. Rd3 {[%clk 0:00:28]}  Nxf3 {[%clk 0:00:17]} 35. h4 {[%clk 0:00:22]}  Bd4 {[%clk 0:00:14]} 36. Bxd4 {[%clk 0:00:13]}  Nxd4 {[%clk 0:00:15]} 37. b4 {[%clk 0:00:13]}  Rc1+ {[%clk 0:00:15]} 38. Rxc1 {[%clk 0:00:13]}  Rxc1+ {[%clk 0:00:13]} 39. Kf2 {[%clk 0:00:14]}  Rb1 {[%clk 0:00:13]} 40. Rc3 {[%clk 0:00:12]}  Rxb4 {[%clk 0:00:13]} 41. Rc5 {[%clk 0:00:12]}  Rb2+ {[%clk 0:00:12]} 42. Ke3 {[%clk 0:00:12]}  Rb3+ {[%clk 0:00:12]} 43. Kf2 {[%clk 0:00:11]}  Ra3 {[%clk 0:00:12]} 44. Rd5 {[%clk 0:00:12]}  Nb3 {[%clk 0:00:11]} 45. Rd7 {[%clk 0:00:11]}  Rxa5 {[%clk 0:00:11]} 46. Rxg7 {[%clk 0:00:12]}  Nd4 {[%clk 0:00:11]} 47. Rxh7 {[%clk 0:00:12]}  b5 {[%clk 0:00:11]} 48. Rf7 {[%clk 0:00:11]}  b4 {[%clk 0:00:11]} 49. h5 {[%clk 0:00:10]}  Ne6 {[%clk 0:00:11]} 50. h6 {[%clk 0:00:09]}  Ng5 {[%clk 0:00:11]} 51. Rg7 {[%clk 0:00:08]}  Nxe4+ {[%clk 0:00:10]} 52. Kg2 {[%clk 0:00:08]}  Ra4 {[%clk 0:00:10]} 53. h7 {[%clk 0:00:08]}  Ra2+ {[%clk 0:00:09]} 54. Kh3 {[%clk 0:00:07]}  Nf2+ {[%clk 0:00:00]} 55. Kh4 {[%clk 0:00:08]} 1-0


[Site "https://www.chess.com"]